Workbook

Sheet Sheet1
C3: 72 & 80 Granite St Manchester NH | G3: Tenant | H3: SF | I3: Pro Rata share | J3: Rent Type | K3: Proposed Rent | L3: Rent/year | M3: Lease XP | N3: Options | O3: Rent PSF | R3: Loan Calculator
Q4: %down | R4: Down Payment | S4: Loan Amount | T4: Interest rate | U4: Year Loan | V4: n (total payments) | W4: i | X4: D | Y4: Monthly Payment
C5: Sales Price | D5: 2000000 | G5: Hometown Coffee Roasters | H5: 3588 | I5: =H5/H11 -> 0.3289328933 | J5: NNN | K5: 3200 | L5: =K5*12 -> 38400 | O5: =L5/H5 -> 10.70234114 | Q5: 0.54 | R5: =Q5*D5 -> 1080000 | S5: =D5-R5 -> 920000 | T5: 0.07 | U5: 20 | V5: 240 | W5: =T5/12 -> 0.005833333333 | X5: =(((1+W5)^V5)-1)/((W5*(1+W5)^V5)) -> 128.9825065 | Y5: =S5/X5 -> 7132.750208
T6: Assumes 7% Int | U6: 20 yr AMORT
C7: Potential Gross Income | D7: =L11 -> 116400 | G7: Republic Brewery | H7: 7320 | I7: =H7/H11 -> 0.6710671067 | J7: NNN | K7: 6500 | L7: =K7*12 -> 78000 | O7: =L7/H7 -> 10.6557377
G9: CAM Reimbursment | R9: Cash on Cash Return (CoC)
C10: Estimated Operating Expenses | R10: Monthly Cash Flow | S10: Down Payment | T10: Est Closing Costs | U10: CoC
C11: Water & Sewer (common) | E11: 0 | F11: Paid | G11: Total | H11: =SUM(H5:H8) -> 10908 | I11: =SUM(I5:I8) -> 1 | K11: =SUM(K5:K9) -> 9700 | L11: =SUM(L5:L9) -> 116400 | O11: =L11/H11 -> 10.67106711 | R11: =K11 -> 9700 | S11: =R5 -> 1080000 | T11: =D5*0.02 -> 40000 | U11: =((R19-S19))/(S11+T11) -> 0.01399553349
C12: Insurance | E12: 0 | F12: By
C13: Taxes | E13: 0 | F13: Tenant | R13: Break Even Ratio
C14: Management | D14: 0.08 | E14: =D14*$D$7 -> 9312 | R14: Annual Debt Service | S14: Total Opex | T14: Gross Income | U14: Break Even Ratio
C15: Reserve | D15: 0.05 | E15: =D7*D15 -> 5820 | R15: =E25 -> 85593.00249 | S15: =E20 -> 15132 | T15: =D7 -> 116400 | U15: =((R15+S15)/T15) -> 0.865335073
C16: Utilities not passed through | E16: 0
C17: (House lights etc ) | R17: Debt Service Coverage Ratio
R18: NOI | S18: Annual Debt Service | U18: DSCR
R19: =E23 -> 101268 | S19: =E25 -> 85593.00249 | U19: =R19/S19 -> 1.1831341
C20: Total Operating Expenses | E20: =SUM(E11:E18) -> 15132
R22: Notes
C23: Net Operating Income | E23: =D7-E20 -> 101268
C25: Annual Debt Service | E25: =Y5*12 -> 85593.00249
C27: Profit/ Loss | E27: =E23-E25 -> 15674.99751
C29: Cap Rate | E29: =(E23/D5)*100 -> 5.0634
C32: Yellow Highlight = Broker Adjusted
